lending/lending_fUSD_20240522
["ID","MTS","AMOUNT","RATE_DAILY","PERIOD"]
[327712173,1716352326170,381.48651999,0.00012999,2]
[327712174,1716352328502,154.76529631,0.000129,2]
[327712175,1716352329552,165.71,0.0001276,2]
[327712176,1716352361575,3465.71352302,0.000129,2]
[327712177,1716352365178,20224.52025968,0.00012999,2]
[327712178,1716352372721,233.73969188,0.00012999,2]
[327712179,1716352375691,740.7550426,0.00012991,2]
[327712180,1716352381110,524.07486649,0.0001276,2]
[327712181,1716352382464,150.0,0.00012999,2]
[327712182,1716352390304,801.91576739,0.0002955,30]
[327712183,1716352391480,152.31,0.00012908,2]
[327712184,1716352391739,152.31,0.00012969,2]
[327712185,1716352403157,2936.5104941,0.00012991,2]
[327712186,1716352406710,500.0,0.00012896,2]
[327712187,1716352445329,1092.10673789,0.000129,2]
[327712188,1716352446111,7270.93523456,0.000118,2]
[327712189,1716352449521,575.16,0.00010897,2]
[327712194,1716352471421,8849.56485299,6.94e-05,2]
[327712196,1716352482148,190.93,0.00012808,2]
[327712198,1716352502365,800.0,0.00012792,2]
[327712199,1716352537924,534.0,0.00013,2]
[327712200,1716352562692,150.0,0.00012999,2]
[327712201,1716352608744,154.76529631,0.000129,2]
[327712204,1716352622254,250.0,0.00012856,2]
[327712205,1716352646585,3042.5354294,0.00012991,2]
[327712206,1716352673901,667.1940669,0.00012991,2]
[327712208,1716352696657,155.0,0.00012999,2]
[327712209,1716352712724,155.60317946,0.00012999,2]
[327712210,1716352725836,528.0,0.00013,2]
[327712211,1716352755752,285.4006863,0.00012991,2]
[327712212,1716352762882,752.48437426,0.00012675,2]
[327712213,1716352783406,1642.309442,0.00012991,2]
[327712215,1716352848945,152.31,0.00013,2]
[327712216,1716352879080,154.76529631,0.000129,2]
[327712217,1716352908752,155.0,0.00012999,2]
[327712218,1716352916153,546.4,0.000109,2]
[327712219,1716352920483,527.0,0.00013,2]
[327712220,1716352935665,1684.02606411,0.000129,2]
[327712221,1716352947872,155.0,0.00012999,2]
[327712222,1716352967963,952.97478,0.000129,2]
[327712223,1716352977756,2000.0,0.00012999,2]
[327712224,1716352980762,156.15495343,0.00012999,2]
[327712225,1716352988969,279.492253,0.00012999,2]
[327712226,1716352989427,743.28,0.00012748,2]
[327712227,1716352997496,3623.5426581,0.00012991,2]
[327712228,1716353019869,189.93,0.00012769,2]
[327712229,1716353025780,794.6024685,0.00012991,2]
[327712230,1716353078107,363.1497008,0.00012991,2]
[327712231,1716353096668,250.0,0.00012769,2]
[327712232,1716353106833,2095.3268728,0.00012991,2]
[327712233,1716353139267,154.76529631,0.000129,2]
[327712234,1716353155714,515.82200569,0.00012999,2]
[327712235,1716353163583,155.84032129,0.00012999,2]
[327712236,1716353167157,448.31911294,0.00012999,2]
[327712237,1716353171519,406.41446044,0.00012999,2]
[327712238,1716353180502,522.0,0.00013,2]
[327712239,1716353190660,525.79941974,0.00012999,2]
[327712240,1716353194178,154.22434041,0.000129,2]
[327712241,1716353233567,-954.79410627,0.00013,2]
[327712242,1716353240591,500.0,0.00012999,2]
[327712243,1716353246179,-464.19617042,0.00013,2]
[327712246,1716353273370,952.97478,0.000129,2]
[327712247,1716353273646,952.97478,0.0001297,2]
[327712250,1716353308292,168836.97943124,0.00012999,2]
[327712251,1716353339645,186.52537024,0.000129,2]
[327712252,1716353349498,1801.932108,0.00012991,2]
[327712253,1716353375462,395.1436029,0.00012991,2]
[327712254,1716353379944,152.31,0.00012919,2]
[327712255,1716353389605,560.16367768,0.000129,2]
[327712256,1716353392072,567.17,0.00010903,2]
[327712257,1716353413221,150.67,0.0001299,2]
[327712258,1716353426052,1898.15019216,0.000129,2]
[327712269,1716353433275,-484.28691844,0.00013,2]
[327712270,1716353433292,-6948.03537203,0.00013,2]
[327712271,1716353433302,-4850.0,0.00013,2]
[327712272,1716353433313,-551.07707952,0.00013,2]
[327712273,1716353433327,-1345.58451624,0.00013,2]
[327712274,1716353433339,-12491.6477529,0.00013,2]
[327712275,1716353433488,-482.87677638,0.00013,2]
[327712276,1716353433500,-559.18577829,0.00013,2]
[327712277,1716353433514,-172990.09095415,0.00013,2]
[327712278,1716353433525,-54101.60243352,0.00013,2]
[327712279,1716353433541,-347.775,0.00013,2]
[327712322,1716353438576,-411.24644974,0.00013,2]
[327712323,1716353438588,-21144.08965766,0.00013,2]
[327712324,1716353438732,-4651.26634805,0.00013,2]
[327712325,1716353438744,-2592.27330304,0.00013,2]
[327712337,1716353440552,-17357.62500003,0.00013,2]
[327712338,1716353442223,155.0,0.00012999,2]
[327712339,1716353442250,-579.11910002,0.00013,2]
[327712340,1716353442311,-25976.55972304,0.00013,2]
[327712341,1716353442323,-74966.88067093,0.00013,2]
[327712342,1716353442335,-192992.55441641,0.00013,2]
[327712343,1716353442369,-2444.87220897,0.00013,2]
[327712344,1716353442382,-669.3090582,0.00013,2]
[327712345,1716353442590,-1677.51226761,0.00013,2]
[327712346,1716353442603,-2918.29057476,0.00013,2]
[327712347,1716353442615,-4491.13911532,0.00013,2]
[327712348,1716353442626,-555.0300982,0.00013,2]
[327712349,1716353442638,-696.2,0.00013,2]
[327712408,1716353443472,-4149.46000906,0.00013,2]
[327712416,1716353443545,-2969.59184944,0.00013,2]
[327712418,1716353443558,-1267.69298547,0.00013,2]
[327712421,1716353443570,-400.8881433,0.00013,2]
[327712423,1716353443584,-2992.66047825,0.00013,2]
[327712427,1716353443614,-514.01,0.00013,2]
[327712429,1716353443626,-21485.94101004,0.00013,2]
[327712432,1716353443638,-263.95605343,0.00013,2]
[327712434,1716353443650,-300.0,0.00013,2]
[327712438,1716353443701,-302.0,0.00013,2]
[327712439,1716353443786,-931.14427352,0.00013,2]
[327712440,1716353443797,-744.5,0.00013,2]
[327712441,1716353443895,-5610.47250635,0.00013,2]
[327712442,1716353443907,-650.94432282,0.00013,2]
[327712443,1716353443950,-3224.73762716,0.00013,2]
[327712469,1716353447961,-265.88500746,0.00013,2]
[327712470,1716353447973,-5269.45320236,0.00013,2]
[327712471,1716353448031,-693.01,0.00013,2]
[327712472,1716353448104,-103244.04553468,0.00013,2]
[327712473,1716353448170,-260373.3164694,0.00013,2]
[327712474,1716353448182,-28178.94917104,0.00013,2]
[327712475,1716353448193,-3514.29202199,0.00013,2]
[327712476,1716353448210,-338.43840616,0.00013,2]
[327712477,1716353448236,-465.96998483,0.00013,2]
[327712478,1716353448301,-3504.48878063,0.00013,2]
[327712479,1716353448313,-41068.81970123,0.00013,2]
[327712480,1716353448324,-51544.63695263,0.00013,2]
[327712481,1716353448336,-7039.04789997,0.00013,2]
[327712482,1716353448713,549.28468944,0.00010903,2]
[327712483,1716353448938,866.81099653,0.00012999,2]
[327712484,1716353449854,155.24336411,0.00012999,2]
[327712485,1716353450643,238.109885,0.00012999,2]
[327712487,1716353451570,200.42131997,0.00012999,2]
[327712488,1716353452634,19495.88921672,0.00012999,2]
[327712489,1716353453736,2004.95025511,0.00012999,2]
[327712490,1716353455304,531.10034735,0.00012999,2]
[327712491,1716353455761,302.67036282,0.00012999,2]
[327712492,1716353456885,295.7961972,0.00012991,2]
[327712493,1716353457618,405.37,0.00012769,2]
[327712494,1716353459786,155.57189108,0.00012999,2]
[327712495,1716353460299,177.34327583,0.00012999,2]
[327712496,1716353461922,236.34,0.00010959,2]
[327712497,1716353462081,278.27928964,0.00012999,2]
[327712498,1716353462517,150.0,0.00012999,2]
[327712499,1716353462586,150.0,0.00012999,2]
[327712500,1716353462929,252.49288459,0.00012869,2]
[327712501,1716353464655,378.64245152,0.00010903,2]
[327712502,1716353466366,750.17346359,0.00012999,2]
[327712503,1716353477004,182.93157257,0.00012349,2]
[327712504,1716353477610,750.94633531,0.00011699,2]
[327712505,1716353481507,210.08078798,0.00012999,2]
[327712506,1716353481943,178.42970517,0.00012869,2]
[327712507,1716353482888,232.04886814,0.00012869,2]
[327712508,1716353483371,18388.8820805,0.00012991,2]
[327712509,1716353483590,247.87349555,0.00012999,2]
[327712510,1716353484299,155.34341398,0.00012999,2]
[327712511,1716353485618,286.14197288,0.00011699,2]
[327712512,1716353485738,19616.61939022,0.00012999,2]
[327712513,1716353485843,1429.43261802,0.00012999,2]
[327712514,1716353486759,1370.55787909,0.00012999,2]
[327712515,1716353486978,306.15892917,0.00012999,2]
[327712516,1716353487010,3007.86436353,0.00012999,2]
[327712517,1716353488797,189.62304337,0.00012999,2]
[327712518,1716353488889,156.77238812,0.00012999,2]
[327712519,1716353489385,156.03478963,0.00012999,2]
[327712520,1716353489449,156.07619007,0.00012999,2]
[327712521,1716353490251,155.0,0.00012999,2]
[327712522,1716353491244,35357.46203519,0.00012999,2]
[327712523,1716353492072,200.46433609,0.00012999,2]
[327712524,1716353492339,262.77384878,0.00012999,2]
[327712525,1716353492371,1564.60657979,0.00012725,2]
[327712526,1716353492940,162.47916166,0.00012999,2]
[327712527,1716353493107,2185.42797665,0.00012999,2]
[327712528,1716353493155,2232.51246975,0.00012999,2]
[327712529,1716353493249,2235.31262442,0.00012999,2]
[327712530,1716353493507,403.13024514,0.00012999,2]
[327712531,1716353493819,157.60901587,0.00012999,2]
[327712532,1716353493854,285.93045245,0.00012999,2]
[327712533,1716353495182,218.35624557,0.00012999,2]
[327712534,1716353495826,206.76817049,0.00012999,2]
[327712535,1716353495942,160.50372505,0.00012999,2]
[327712536,1716353496245,5562.38640349,0.00012999,2]
[327712537,1716353496492,155.0,0.00012999,2]
[327712538,1716353496592,200.8236604,0.00012999,2]
[327712539,1716353496623,156.75017604,0.00012999,2]
[327712540,1716353496660,342.63946977,0.00012999,2]
[327712541,1716353497123,178.76786444,0.00012999,2]
[327712542,1716353497154,159.3460464,0.00012999,2]
[327712543,1716353498349,443.18031102,0.00012999,2]
[327712544,1716353498947,349.94592878,0.00012999,2]
[327712545,1716353499051,155.96728218,0.00012999,2]
[327712546,1716353500013,199.84988869,0.00012999,2]
[327712547,1716353501665,256.97960233,0.00012999,2]
[327712548,1716353502296,788.06090322,0.00012999,2]
[327712549,1716353506682,192.73470175,0.00012999,2]
[327712550,1716353508182,155.63144967,0.00012999,2]
[327712551,1716353508253,318.00921075,0.000129,2]
[327712552,1716353509177,740.15777175,0.00012999,2]
[327712553,1716353509660,3415.7172514,0.00012991,2]
[327712554,1716353510585,155.76835395,0.00012999,2]
[327712555,1716353513341,2631.15,0.00012858,2]
[327712556,1716353513569,2631.15,0.00012861,2]
[327712557,1716353513760,563.31082635,0.000129,2]
[327712558,1716353513795,2631.15,0.00012864,2]
[327712559,1716353514196,2631.15,0.00012868,2]
[327712560,1716353514410,2631.15,0.00012871,2]
[327712561,1716353514616,2631.15,0.00012874,2]
[327712562,1716353514861,2631.15,0.00012878,2]
[327712563,1716353515089,2631.15,0.00012881,2]
[327712564,1716353515283,2631.15,0.00012884,2]
[327712565,1716353515491,2631.15,0.00012888,2]
[327712566,1716353515688,2631.15,0.00012891,2]
[327712567,1716353515930,2631.15,0.00012895,2]
[327712568,1716353516165,2631.15,0.00012898,2]
[327712569,1716353516397,2631.15,0.00012901,2]
[327712570,1716353516648,2631.15,0.00012905,2]
[327712571,1716353516743,150.01,0.00012999,2]
[327712572,1716353516861,2631.15,0.00012908,2]
[327712573,1716353517063,2631.15,0.00012911,2]
[327712574,1716353517270,2631.15,0.00012915,2]
[327712575,1716353517645,2631.15,0.00012918,2]
[327712576,1716353517847,1000.0,0.000129,2]
[327712577,1716353517880,2631.15,0.00012922,2]
[327712578,1716353524109,800.0,0.00012986,2]
[327712579,1716353524424,7276.5784,0.000129,2]
[327712580,1716353526763,150.01,0.00012999,2]
[327712581,1716353531674,10000.0,0.000129,2]
[327712582,1716353536211,225.92,0.00012858,2]
[327712583,1716353536801,278.18410524,0.00012999,2]
[327712584,1716353539190,360.0,0.00012999,2]
[327712585,1716353565780,696.2479555,0.00012991,2]
[327712586,1716353569744,166.15,0.00012858,2]
[327712587,1716353596758,200.0,0.00012895,2]
[327712588,1716353597120,200.0,0.00012896,2]
[327712589,1716353599302,509.07,0.0001283,2]
[327712590,1716353601376,1000.0,0.00012895,2]
[327712591,1716353601780,1000.0,0.00012896,2]
[327712592,1716353602198,1000.0,0.00012896,2]
[327712593,1716353609302,621.1765,0.000129,2]
[327712594,1716353611370,500.0,0.00012896,2]
[327712595,1716353619790,23890.0,0.00012835,2]
[327712596,1716353642471,150.0,0.00012999,2]
[327712597,1716353663426,318.00921073,0.000129,2]
[327712598,1716353680549,1591.95,0.00012783,2]
[327712599,1716353718345,186.62,0.00012739,2]
[327712600,1716353718577,3198.87346661,0.000129,2]
[327712601,1716353725715,250.0,0.00012808,2]
[327712602,1716353729869,1054.17505449,0.000129,2]
[327712603,1716353739994,674.63870287,0.000129,2]
[327712604,1716353741645,2560.36,0.00012837,2]
[327712605,1716353754219,60700.36974957,0.0001299,2]
[327712606,1716353778577,250.0,0.00012823,2]
[327712607,1716353782815,200.0,0.00012823,2]
[327712608,1716353783881,151.8854144,0.00012991,2]
[327712609,1716353795414,391.34205,0.0001287,2]
[327712610,1716353806392,150.0,0.00012823,2]
[327712611,1716353808215,6639.3255175,0.00012991,2]
[327712612,1716353808763,318.00921073,0.000129,2]
[327712613,1716353822526,150.0,0.00012999,2]
[327712614,1716353832983,784.88,0.00012823,2]
[327712615,1716353835808,1352.6797279,0.00012991,2]
[327712616,1716353840966,963.55,0.00012823,2]
[327712617,1716353843651,2895.4,0.00012823,2]
[327712618,1716353866610,218.25,0.00012823,2]
[327712619,1716353881606,4472.55,0.00012846,2]
[327712620,1716353890310,622.39,0.00010929,2]
[327712621,1716353903365,1376.55,0.00012824,2]
[327712622,1716353909959,151.66,0.00012824,2]
[327712623,1716353915410,385.1885052,0.00012991,2]
[327712624,1716353916319,2258.62761654,0.000129,2]
[327712625,1716353928503,1852.42,0.00012824,2]
[327712626,1716353944048,318.00921073,0.000129,2]
[327712627,1716353957104,675.7,0.00012805,2]
[327712628,1716353977984,-16118.0163,0.00013,2]
[327712629,1716353984233,336.11,0.00012927,2]
[327712630,1716353984456,336.11,0.00012963,2]
[327712631,1716353984671,336.11,0.00012998,2]
[327712632,1716353992116,158.43504908,0.000129,2]
[327712633,1716353999934,12485.45239199,0.00012999,2]
[327712634,1716354002517,150.0,0.00012999,2]
[327712635,1716354002682,150.0,0.00012999,2]
[327712636,1716354007102,2186.8060043,0.00012999,2]
[327712637,1716354037997,166.78278404,0.0001299,2]
[327712638,1716354069447,318.00921073,0.000129,2]
[327712639,1716354070124,948.75754905,0.000129,2]
[327712640,1716354132132,9574.9201771,0.00012991,2]
[327712641,1716354140452,173.36185652,0.000129,2]
[327712642,1716354143682,643.77663,0.0001287,2]
[327712643,1716354158639,219.0419367,0.00012991,2]
[327712644,1716354185096,318.00921073,0.000129,2]
[327712645,1716354197223,250.0,0.00012741,2]
[327712646,1716354199717,1060.96,0.00012741,2]
[327712647,1716354212256,1192.2781226,0.00012991,2]
[327712648,1716354266251,338.508434,0.00012991,2]
[327712649,1716354275241,165.71,0.00012738,2]
[327712650,1716354307256,250.0,0.00012738,2]
[327712651,1716354406725,2032.76485485,0.000129,2]
[327712652,1716354410337,853.8817941,0.000129,2]
[327712653,1716354426133,-5509.91438344,0.00013,2]
[327712654,1716354436217,-3379.92448227,0.00013,2]
[327712655,1716354446090,-736.58464567,0.00013,2]
[327712656,1716354452099,-2636.83992234,0.00013,2]
[327712657,1716354455062,459.44,0.00012727,2]
[327712658,1716354486619,177.0674418,0.00012991,2]
[327712662,1716354509298,11927.4949938,0.00012991,2]
[327712666,1716354533203,591.27,0.0001083,2]
[327712679,1716354631873,-187420.11187834,0.00013,2]
[327712680,1716354631886,-693189.18711009,0.00013,2]
[327712681,1716354631895,-206015.68142287,0.00013,2]
[327712682,1716354631906,-258700.0064962,0.00013,2]
[327712683,1716354631917,-218065.62282362,0.00013,2]
[327712684,1716354631928,-372385.23291278,0.00013,2]
[327712685,1716354632095,-619.65012665,0.00013,2]
[327712686,1716354632107,-871.5527439,0.00013,2]
[327712687,1716354632118,-485.80288671,0.00013,2]
[327712694,1716354632955,-5438.39379598,0.00013,2]
[327712696,1716354632968,-2420.67069498,0.00013,2]
[327712698,1716354632980,-8834.09873747,0.00013,2]
[327712700,1716354632992,-446099.7022757,0.00013,2]
[327712703,1716354633004,-82998.27998979,0.00013,2]
[327712709,1716354638387,-999.61265822,0.00013,2]
[327712710,1716354638400,-1985.73265892,0.00013,2]
[327712711,1716354638413,-3596.35,0.00013,2]
[327712713,1716354638738,-1726.98413778,0.00013,2]
[327712714,1716354638750,-771.07115909,0.00013,2]
[327712715,1716354638762,-882.06164822,0.00013,2]
[327712717,1716354640363,-1420.15592054,0.00013,2]
[327712718,1716354640374,-1552.72581611,0.00013,2]
[327712721,1716354640777,-2.882e-05,0.00013,2]
[327712730,1716354643278,-289254.61736533,0.00013,2]
[327712731,1716354643290,-26047.63096274,0.00013,2]
[327712732,1716354643357,-276.00522358,0.00013,2]
[327712733,1716354643369,-3003.18065933,0.00013,2]
[327712734,1716354643381,-1701.77152169,0.00013,2]
[327712738,1716354644389,2413.0699239,0.00012991,2]
[327712741,1716354645919,-3639.3868,0.00013,2]
[327712742,1716354646049,-263.63284643,0.00013,2]
[327712743,1716354646306,-6959.4,0.00013,2]
[327712745,1716354646317,-694.05152097,0.00013,2]
[327712746,1716354646494,7238.04971945,0.00012999,2]
[327712747,1716354646658,188.19,0.00012669,2]
[327712748,1716354649061,10925.90452259,0.00012999,2]
[327712749,1716354655121,313.61870849,0.00012349,2]
[327712750,1716354660852,26722.44020175,0.00012999,2]
[327712751,1716354661820,302.67036282,0.00012999,2]
[327712752,1716354662866,155.66189991,0.00012999,2]
[327712753,1716354666961,178.43260266,0.00012869,2]
[327712754,1716354667154,3005.85209751,0.00012999,2]
[327712755,1716354668013,686.12362517,0.00012999,2]
[327712756,1716354668052,2328.27154155,0.00012999,2]
[327712757,1716354670766,6613.7120913,0.00012991,2]
[327712758,1716354671486,209.33059875,0.00012999,2]
[327712759,1716354671860,163.91122273,0.00012999,2]
[327712760,1716354672877,1000.0,0.000129,2]
[327712761,1716354675139,155.0,0.00012999,2]
[327712762,1716354675578,258.48911339,0.00012999,2]
[327712763,1716354676095,325.6841531,0.00012999,2]
[327712764,1716354676150,1000.0,0.00012999,2]
[327712765,1716354676809,237.26077065,0.00012999,2]
[327712766,1716354677377,1789.74382833,0.00012999,2]
[327712767,1716354677852,4771.39656265,0.00012999,2]
[327712768,1716354679367,7500.0,0.000129,2]
[327712769,1716354681422,181.87914729,0.000129,2]
[327712770,1716354682315,1389.70496296,0.00012999,2]
[327712771,1716354684416,284.141812,0.00012999,2]
[327712772,1716354684647,928.9111,0.000129,2]
[327712773,1716354687507,753.49584399,0.00012999,2]
[327712774,1716354690324,250.0,0.00012718,2]
[327712775,1716354700750,1072.404398,0.00012991,2]
[327712776,1716354701091,274.6135,0.000129,2]
[327712777,1716354715622,1895.685,0.000129,2]
[327712778,1716354720203,2077.9503,0.000129,2]
[327712779,1716354721883,1441.74,0.00012716,2]
[327712780,1716354722593,150.0,0.00012999,2]
[327712781,1716354722663,150.0,0.00012999,2]
[327712782,1716354725852,500.0,0.00028,30]
[327712783,1716354750805,10261.3431,0.000129,2]
[327712784,1716354754406,7018.1801,0.000129,2]
[327712785,1716354756582,321.27328421,0.000129,2]
[327712786,1716354780278,8930.9458,0.000129,2]
[327712787,1716354782028,5085.0,0.0003,30]
[327712788,1716354797016,1000.0,0.00012895,2]
[327712789,1716354797713,1000.0,0.00012896,2]
[327712790,1716354806098,500.0,0.00012896,2]
[327712791,1716354812899,163.57,0.00012716,2]
[327712792,1716354857063,1000.0,0.000129,2]
[327712793,1716354860305,885.3372093,0.00012991,2]
[327712794,1716354884716,176.80081464,0.000129,2]
[327712795,1716354890151,150.0,0.00012722,2]
[327712796,1716354902516,209.45,0.00012722,2]
[327712797,1716354902609,150.0,0.00012999,2]
[327712798,1716354915240,3781.4862531,0.00012991,2]
[327712799,1716354938350,632.44,0.00012747,2]
[327712800,1716354965657,2332.79,0.00012864,2]
[327712802,1716354987367,250.0,0.00012787,2]
[327712803,1716355023783,530.3533848,0.00012991,2]
[327712804,1716355047762,587.76,0.00010797,2]
[327712805,1716355049251,1194.6243091,0.00012991,2]
[327712806,1716355050012,1201.74,0.00012715,2]
[327712807,1716355072695,3087.73952818,0.000129,2]
[327712808,1716355076412,3270.7853501,0.00012991,2]
[327712809,1716355095776,348.95,0.00012796,2]
[327712810,1716355095973,348.95,0.00012831,2]
[327712811,1716355096203,348.95,0.00012866,2]
[327712812,1716355096415,348.95,0.00012901,2]
[327712813,1716355096661,348.95,0.00012936,2]
[327712814,1716355096892,16890.3877,0.000129,2]
[327712815,1716355097089,348.95,0.00012971,2]
[327712816,1716355115473,687.0861,0.000129,2]
[327712817,1716355118362,337.21,0.00012446,2]
[327712818,1716355122488,167.75,0.00012446,2]
[327712819,1716355166170,250.0,0.00012446,2]
[327712820,1716355209630,310.48007206,0.0001299,2]
[327712821,1716355209696,310.48007206,0.0001299,2]
[327712822,1716355209769,310.48007206,0.0001299,2]
[327712823,1716355237225,166.95214797,0.000129,2]
[327712824,1716355238616,2991.2112307,0.00012991,2]
[327712825,1716355282775,960.82,0.00012676,2]
[327712828,1716355335913,186.62,0.00012707,2]
[327712829,1716355365420,643.77664,0.000129,2]
[327712830,1716355371173,10343.38268869,0.00031,120]
[327712831,1716355375675,803.5089029,0.000129,2]
[327712832,1716355385685,172.66788946,0.000129,2]
[327712833,1716355390656,717.48853864,0.00012,2]
[327712834,1716355433118,-748.8345,0.00013,2]
[327712835,1716355437192,-4000.0,0.00013,2]
[327712836,1716355437611,-4000.0,0.00013,2]
[327712837,1716355438000,-4000.0,0.00013,2]
[327712838,1716355438415,-4000.0,0.00013,2]
[327712839,1716355439998,-4000.0,0.00013,2]
[327712840,1716355440034,-4000.0,0.00013,2]
[327712841,1716355440861,-4000.0,0.00013,2]
[327712842,1716355441380,-4000.0,0.00013,2]
[327712843,1716355442000,-4000.0,0.00013,2]
[327712844,1716355442727,-4000.0,0.00013,2]
[327712845,1716355443679,-4000.0,0.00013,2]
[327712846,1716355444726,-4000.0,0.00013,2]
[327712847,1716355446890,-4000.0,0.00013,2]
[327712848,1716355454688,4055.992141,0.00012991,2]
[327712849,1716355466616,513526.19136522,0.00012,2]
[327712850,1716355481762,1481.4138779,0.00012991,2]
[327712851,1716355483413,330.55871346,0.000129,2]
[327712852,1716355513642,558.37,0.00010752,2]
[327712853,1716355526975,494.04,0.00012607,2]
[327712854,1716355535274,657.6735954,0.00012991,2]
[327712855,1716355565921,7135.7583903,0.00012991,2]
[327712856,1716355591795,244.26,0.00012895,2]
[327712857,1716355592011,244.26,0.0001293,2]
[327712858,1716355592221,244.26,0.00012966,2]
[327712859,1716355637114,-3333.52356066,0.00013,2]
[327712860,1716355651169,-790.65743694,0.00013,2]
[327712861,1716355671107,643.77663,0.0001297,2]
[327712862,1716355671156,643.77664,0.000129,2]
[327712863,1716355724048,250.0,0.00012274,2]
[327712864,1716355756413,640.21,0.00012292,2]
[327712865,1716355765891,723.15801261,0.000129,2]
[327712866,1716355767015,1844.7742706,0.000129,2]
[327712867,1716355774278,2500.0,0.000129,2]
[327712868,1716355774637,2500.0,0.000129,2]
[327712869,1716355780242,3031.9956543,0.00012991,2]
[327712871,1716355832166,-9499.39207902,0.00013,2]
[327712872,1716355832395,-2824.95999929,0.00013,2]
[327712873,1716355833195,-11300.6794463,0.00013,2]
[327712874,1716355833207,-435925.81697565,0.00013,2]
[327712875,1716355833218,-1357.62885533,0.00013,2]
[327712876,1716355833230,-883.54995,0.00013,2]
[327712877,1716355833242,-846.47,0.00013,2]
[327712878,1716355833253,-350.2299999,0.00013,2]
[327712879,1716355833303,-358.22005688,0.00013,2]
[327712880,1716355833315,-14917.04077775,0.00013,2]
[327712881,1716355833449,-5461.11031969,0.00013,2]
[327712882,1716355833505,-137312.94088617,0.00013,2]
[327712884,1716355838301,-6985.70000001,0.00013,2]
[327712885,1716355838423,-21847.25615211,0.00013,2]
[327712886,1716355838435,-597.4,0.00013,2]
[327712887,1716355838550,-792552.59416924,0.00013,2]
[327712888,1716355838676,-998.68307016,0.00013,2]
[327712889,1716355840383,-5626.04673267,0.00013,2]
[327712890,1716355840395,-696.772,0.00013,2]
[327712892,1716355840694,-2786.737,0.00013,2]
[327712893,1716355840824,-39018.23000757,0.00013,2]
[327712894,1716355840836,-2793.20235824,0.00013,2]
[327712895,1716355843252,-1685893.38116992,0.00013,2]
[327712902,1716355843380,-1855.45918859,0.00013,2]
[327712904,1716355843505,-1728.36382575,0.00013,2]
[327712905,1716355843516,-350.81999996,0.00013,2]
[327712906,1716355843630,-820.96148615,0.00013,2]
[327712928,1716355846356,-1211.45319428,0.00013,2]
[327712929,1716355846494,-674.09836226,0.00013,2]
[327712930,1716355846505,-61381.42968802,0.00013,2]
[327712931,1716355846518,-493.706,0.00013,2]
[327712932,1716355846632,-768.087,0.00013,2]
[327712947,1716355856373,803.0,0.00012999,2]
[327712948,1716355856603,285627.81240992,0.00012991,2]
[327712949,1716355860994,155.0,0.00012999,2]
[327712950,1716355861796,478.7787098,0.00012991,2]
[327712951,1716355867048,8678.90175118,0.00012999,2]
[327712952,1716355878283,165.71,0.00012303,2]
[327712953,1716355880115,957.63376761,0.00012349,2]
[327712954,1716355884968,8588.75090336,0.00012999,2]